[Event "2nd Gujarat Open 2019"]
[Site "Ahmedabad, Gujarat"]
[Date "2019.09.22"]
[Round "?"]
[White "Deepan Chakkravarthy J."]
[Black "Abdullah Al, Raison"]
[Result "1-0"]
[ECO "A00"]
[WhiteElo "2539"]
[BlackElo "1838"]
[Annotator "ChessBase"]
[PlyCount "64"]
[EventDate "2019.09.22"]
[EventCountry "IND"]
[SourceTitle "playchess.com"]
[Source "ChessBase"]
[SourceQuality "1"]
[TimeControl "5400+30"]

1. a4 {[%emt 0:05:49]} e5 {[%emt 0:02:02]} 2. e4 {[%emt 0:00:16]} Nf6 {[%emt 0:01:00]} 3. Nc3 {[%emt 0:00:40]} Bc5 {[%emt 0:03:52]} 4. d3 {[%emt 0:04:25]} h6 {[%emt 0:07:37]} 5. Be3 {[%emt 0:02:05]} Bb4 {[%emt 0:02:44]} 6. Be2 {[%emt 0:02:05]} c6 {[%emt 0:13:24]} 7. Nf3 {[%emt 0:02:26]} d5 {[%emt 0:02:55]} 8. Bd2 {[%emt 0:00:56]} Qe7 {[%emt 0:04:59]} 9. O-O {[%emt 0:00:33]} dxe4 {[%emt 0:07:24]} 10. Nxe4 {[%emt 0:01:53]} Nxe4 {[%emt 0:00:25]} 11. dxe4 {[%emt 0:00:13]} O-O {[%emt 0:00:41]} 12. a5 {[%emt 0:02:43]} Nd7 {[%emt 0:06:26]} 13. h3 {[%emt 0:03:35]} Re8 {[%emt 0:05:31]} 14. c3 {[%emt 0:06:43]} Bc5 {[%emt 0:03:24]} 15. b4 {[%emt 0:00:16]} Bd6 {[%emt 0:00:02]} 16. Be3 {[%emt 0:00:12]} Nf6 {[%emt 0:00:42]} 17. Qc2 {[%emt 0:00:08]} Be6 {[%emt 0:02:35]} 18. Nd2 {[%emt 1:04:02]} Qc7 {[%emt 0:02:58]} 19. Nc4 {[%emt 0:00:00]} Bxc4 {[%emt 0:03:24]} 20. Bxc4 {[%emt 0:00:00]} b5 {[%emt 0:00:34]} 21. Be2 {[%emt 0:00:00]} Rab8 {[%emt 0:01:04]} 22. a6 {[%emt 0:00:00]} c5 {[%emt 0:09:27]} 23. c4 {[%emt 0:00:00]} bxc4 {[%emt 0:01:40]} 24. bxc5 {[%emt 0:00:00]} Bxc5 {[%emt 0:06:59]} 25. Qxc4 {[%emt 0:00:00]} Rec8 {[%emt 0:01:48]} 26. Rfc1 {[%emt 0:00:00]} Bb6 {[%emt 0:02:27]} 27. Qxc7 {[%emt 0:04:30]} Rxc7 {[%emt 0:00:20]} 28. Rxc7 {[%emt 0:00:00]} Bxc7 {[%emt 0:00:01]} 29. Bxa7 {[%emt 0:00:00]} Ra8 {[%emt 0:01:27]} 30. Be3 {[%emt 0:00:00]} Nd7 {[%emt 0:01:20]} 31. Bb5 {[%emt 0:00:00]} Nb6 {[%emt 0:00:48]} 32. a7 {[%emt 0:00:00]} Rd8 {[%emt 0:00:18]} 1-0

[Event "2nd Gujarat Open 2019"]
[Site "Ahmedabad, Gujarat"]
[Date "2019.09.22"]
[Round "?"]
[White "Rahman, Ziaur"]
[Black "Sreekar J S S"]
[Result "1-0"]
[ECO "A13"]
[WhiteElo "2492"]
[BlackElo "1818"]
[Annotator "ChessBase"]
[PlyCount "120"]
[EventDate "2019.09.22"]
[EventCountry "IND"]
[SourceTitle "playchess.com"]
[Source "ChessBase"]
[SourceQuality "1"]
[TimeControl "5400+30"]

1. Nf3 {[%emt 0:00:10]} Nf6 {[%emt 0:00:00]} 2. c4 {[%emt 0:00:40]} e6 {[%emt 0:00:08]} 3. g3 {[%emt 0:00:25]} d5 {[%emt 0:00:12]} 4. Bg2 {[%emt 0:00:06]} c6 {[%emt 0:08:47]} 5. O-O {[%emt 0:00:22]} Nbd7 {[%emt 0:00:15]} 6. d3 {[%emt 0:02:32]} Be7 {[%emt 0:06:46]} 7. Nc3 {[%emt 0:01:05]} O-O {[%emt 0:04:13]} 8. cxd5 {[%emt 0:13:13]} Nxd5 {[%emt 0:20:40]} 9. Bd2 {[%emt 0:03:39]} b6 {[%emt 0:05:25]} 10. Rc1 {[%emt 0:03:20]} Bb7 {[%emt 0:00:13]} 11. Qa4 {[%emt 0:03:48]} b5 {[%emt 0:15:42]} 12. Qb3 {[%emt 0:01:10]} Qb6 {[%emt 0:03:12]} 13. d4 {[%emt 0:12:24]} Rac8 {[%emt 0:02:53]} 14. h4 {[%emt 0:05:13]} h6 {[%emt 0:04:18]} 15. Nxd5 {[%emt 0:02:32]} cxd5 {[%emt 0:00:42]} 16. Bb4 {[%emt 0:00:22]} Bxb4 {[%emt 0:02:14]} 17. Qxb4 {[%emt 0:00:05]} Rc6 {[%emt 0:08:01]} 18. Rxc6 {[%emt 0:03:37]} Qxc6 {[%emt 0:00:20]} 19. Qe7 {[%emt 0:00:58]} Rc8 {[%emt 0:03:32]} 20. Ne1 {[%emt 0:03:06]} Qc7 {[%emt 0:04:18]} 21. Nd3 {[%emt 0:00:55]} Qd8 {[%emt 0:00:19]} 22. Qxd8+ {[%emt 0:11:51]} Rxd8 {[%emt 0:00:08]} 23. b4 {[%emt 0:01:20]} Rc8 {[%emt 0:00:55]} 24. Ra1 {[%emt 0:00:16]} Bc6 {[%emt 0:02:05]} 25. e3 {[%emt 0:01:04]} Kf8 {[%emt 0:00:17]} 26. Bf1 {[%emt 0:00:09]} Ke7 {[%emt 0:00:35]} 27. Nc5 {[%emt 0:01:02]} Nxc5 {[%emt 0:00:37]} 28. dxc5 {[%emt 0:00:13]} Rb8 {[%emt 0:00:54]} 29. Rb1 {[%emt 0:00:53]} e5 {[%emt 0:03:26]} 30. Rb3 {[%emt 0:00:25]} Rb7 {[%emt 0:00:48]} 31. Ra3 {[%emt 0:00:38]} Ke6 {[%emt 0:02:53]} 32. Ra6 {[%emt 0:01:51]} Kd7 {[%emt 0:00:09]} 33. Bg2 {[%emt 0:00:43]} Kc7 {[%emt 0:00:48]} 34. h5 {[%emt 0:02:00]} Kd7 {[%emt 0:00:32]} 35. Bxd5 {[%emt 0:01:25]} Bxd5 {[%emt 0:00:21]} 36. Rd6+ {[%emt 0:00:02]} Ke7 {[%emt 0:00:28]} 37. Rxd5 {[%emt 0:00:03]} f6 {[%emt 0:00:07]} 38. Rd6 {[%emt 0:00:12]} Rc7 {[%emt 0:00:40]} 39. Ra6 {[%emt 0:00:12]} Kd7 {[%emt 0:00:18]} 40. Kg2 {[%emt 0:00:28]} Ke7 {[%emt 0:00:58]} 41. g4 {[%emt 0:00:10]} Kd7 {[%emt 0:00:26]} 42. Kf3 {[%emt 0:00:08]} Kc8 {[%emt 0:00:12]} 43. Rd6 {[%emt 0:00:42]} Kb7 {[%emt 0:00:09]} 44. Ke4 {[%emt 0:00:08]} a5 {[%emt 0:00:39]} 45. a3 {[%emt 0:00:17]} axb4 {[%emt 0:00:01]} 46. axb4 {[%emt 0:00:06]} Kc8 {[%emt 0:00:15]} 47. Rb6 {[%emt 0:00:24]} Rd7 {[%emt 0:00:40]} 48. Rxb5 {[%emt 0:00:13]} Rd2 {[%emt 0:00:15]} 49. f4 {[%emt 0:00:52]} exf4 {[%emt 0:00:05]} 50. exf4 {[%emt 0:00:04]} Re2+ {[%emt 0:00:22]} 51. Kf5 {[%emt 0:00:09]} Rf2 {[%emt 0:00:04]} 52. Ra5 {[%emt 0:00:20]} Rc2 {[%emt 0:00:16]} 53. Ra7 {[%emt 0:00:11]} Rc4 {[%emt 0:00:17]} 54. Rxg7 {[%emt 0:00:07]} Rxb4 {[%emt 0:00:01]} 55. Rf7 {[%emt 0:00:17]} Rb5 {[%emt 0:00:36]} 56. Kg6 {[%emt 0:00:19]} Rxc5 {[%emt 0:00:21]} 57. Kxh6 {[%emt 0:00:13]} f5 {[%emt 0:00:45]} 58. g5 {[%emt 0:00:17]} Kd8 {[%emt 0:00:20]} 59. g6 {[%emt 0:00:10]} Ke8 {[%emt 0:00:01]} 60. Kg5 {[%emt 0:00:12]} Rc1 {[%emt 0:00:10]} 1-0

[Event "2nd Gujarat Open 2019"]
[Site "Ahmedabad, Gujarat"]
[Date "2019.09.22"]
[Round "?"]
[White "Laxman, R.R."]
[Black "Chilukuri Sai Varshith"]
[Result "0-1"]
[ECO "D02"]
[WhiteElo "2437"]
[BlackElo "1813"]
[Annotator "NA"]
[PlyCount "125"]
[EventDate "2019.09.22"]
[EventCountry "IND"]
[SourceTitle "playchess.com"]
[Source "ChessBase"]
[SourceQuality "1"]
[TimeControl "5400+30"]

1. d4 {[%emt 0:00:00]} Nf6 {[%emt 0:00:33]} 2. Nf3 {[%emt 0:00:00]} g6 {[%emt 0:01:07]} 3. Nbd2 {[%emt 0:00:00]} d5 {[%emt 0:00:22]} 4. e3 {[%emt 0:00:00]} Bg7 {[%emt 0:01:01]} 5. b4 {[%emt 0:00:00]} O-O {[%emt 0:01:37]} 6. Be2 {[%emt 0:01:18]} b6 {[%emt 0:07:23]} 7. O-O {[%emt 0:00:51]} Bb7 {[%emt 0:03:48]} 8. c4 {[%emt 0:01:22]} Nbd7 {[%emt 0:05:11]} 9. Bb2 {[%emt 0:02:45]} c5 {[%emt 0:04:56]} 10. dxc5 {[%emt 0:01:35]} bxc5 {[%emt 0:04:22]} 11. b5 {[%emt 0:00:05]} e6 {[%emt 0:06:15]} 12. a4 {[%emt 0:00:16]} a5 {[%emt 0:07:27]} 13. Qc2 {[%emt 0:00:23]} Qc7 {[%emt 0:12:32]} 14. Rfd1 {[%emt 0:01:51]} Rfc8 {[%emt 0:05:39]} 15. h3 {[%emt 0:00:24]} Nb6 {[%emt 0:03:34]} 16. Be5 {[%emt 0:00:22]} Qe7 {[%emt 0:03:19]} 17. Qb2 {[%emt 0:01:48]} Ne8 {[%emt 0:02:31]} 18. Bxg7 {[%emt 0:00:15]} Nxg7 {[%emt 0:00:12]} 19. Nh2 {[%emt 0:03:22]} h5 {[%emt 0:02:44]} 20. Qe5 {[%emt 0:01:59]} Nd7 {[%emt 0:01:57]} 21. Qc3 {[%emt 0:00:47]} Nb6 {[%emt 0:02:48]} 22. Nhf3 {[%emt 0:03:39]} Nf5 {[%emt 0:01:20]} 23. cxd5 {[%emt 0:03:23]} exd5 {[%emt 0:02:21]} 24. Qe5 {[%emt 0:00:06]} Qxe5 {[%emt 0:01:15]} 25. Nxe5 {[%emt 0:00:02]} Nd6 {[%emt 0:01:54]} 26. Nb3 {[%emt 0:00:51]} Ne4 {[%emt 0:00:39]} 27. Rdc1 {[%emt 0:00:13]} Kg7 {[%emt 0:02:20]} 28. f3 {[%emt 0:01:48]} c4 {[%emt 0:00:14]} 29. Nd4 {[%emt 0:00:20]} Nc5 {[%emt 0:00:08]} 30. Nec6 {[%emt 0:02:13]} Bxc6 {[%emt 0:00:49]} 31. bxc6 {[%emt 0:00:01]} Ne6 {[%emt 0:00:55]} 32. Kf2 {[%emt 0:01:25]} Nxd4 {[%emt 0:00:05]} 33. exd4 {[%emt 0:00:02]} Rxc6 {[%emt 0:00:28]} 34. Rcb1 {[%emt 0:00:18]} Nd7 {[%emt 0:01:22]} 35. Rb5 {[%emt 0:00:05]} Nf6 {[%emt 0:00:39]} 36. Rab1 {[%emt 0:00:06]} Re6 {[%emt 0:01:23]} 37. h4 {[%emt 0:00:39]} Raa6 {[%emt 0:04:16]} 38. Rc5 {[%emt 0:00:56]} Reb6 {[%emt 0:00:58]} 39. Rxb6 {[%emt 0:00:37]} Rxb6 {[%emt 0:00:05]} 40. Rxa5 {[%emt 0:00:08]} Rb4 {[%emt 0:00:31]} 41. Bd1 {[%emt 0:01:39]} Rb2+ {[%emt 0:01:12]} 42. Be2 {[%emt 0:01:05]} Ra2 {[%emt 0:01:49]} 43. Ra7 {[%emt 0:00:13]} Ne8 {[%emt 0:02:02]} 44. Ra5 {[%emt 0:04:41]} Nc7 {[%emt 0:00:49]} 45. Ke3 {[%emt 0:00:16]} Ra3+ {[%emt 0:00:22]} 46. Kd2 {[%emt 0:00:18]} Ra2+ {[%emt 0:00:04]} 47. Ke1 {[%emt 0:00:13]} Ne6 {[%emt 0:01:37]} 48. Bd1 {[%emt 0:01:01]} Nf4 {[%emt 0:01:02]} 49. g3 {[%emt 0:00:01]} Nd3+ {[%emt 0:00:27]} 50. Kf1 {[%emt 0:00:01]} Rf2+ {[%emt 0:00:26]} 51. Kg1 {[%emt 0:00:01]} Rd2 {[%emt 0:00:07]} 52. Kf1 {[%emt 0:00:07]} Rxd1+ {[%emt 0:00:04]} 53. Ke2 {[%emt 0:00:01]} Rg1 {[%emt 0:00:42]} 54. Rxd5 {[%emt 0:00:01]} Rxg3 {[%emt 0:00:10]} 55. Rd7 {[%emt 0:00:10]} Rg2+ {[%emt 0:00:20]} 56. Ke3 {[%emt 0:00:00]} Nb2 {[%emt 0:00:20]} 57. a5 {[%emt 0:00:05]} Nd1+ {[%emt 0:00:24]} 58. Ke4 {[%emt 1:12:52]} Re2+ {[%emt 0:00:34]} 59. Kd5 {[%emt 0:00:00]} Ne3+ {[%emt 0:00:17]} 60. Ke4 {[%emt 0:00:00]} c3 {[%emt 0:00:34]} 61. a6 {[%emt 0:00:00]} c2 {[%emt 0:00:49]} 62. Rc7 {[%emt 0:00:00]} Nc4+ {[%emt 0:00:07]} 63. Kd3 {[%emt 0:00:00]} 0-1

[Event "2nd Gujarat Open 2019"]
[Site "Ahmedabad, Gujarat"]
[Date "2019.09.22"]
[Round "?"]
[White "Neelotpal, Das"]
[Black "Vijay, Anand M."]
[Result "1-0"]
[ECO "B26"]
[WhiteElo "2433"]
[BlackElo "1806"]
[Annotator "NA"]
[PlyCount "85"]
[EventDate "2019.09.22"]
[EventCountry "IND"]
[SourceTitle "playchess.com"]
[Source "ChessBase"]
[SourceQuality "1"]
[TimeControl "5400+30"]

1. e4 {[%emt 0:00:00]} c5 {[%emt 0:04:19]} 2. Nc3 {[%emt 0:00:00]} g6 {[%emt 0:00:14]} 3. g3 {[%emt 0:04:10]} Bg7 {[%emt 0:00:35]} 4. Bg2 {[%emt 0:00:06]} Nc6 {[%emt 0:00:08]} 5. d3 {[%emt 0:00:03]} e6 {[%emt 0:00:51]} 6. Be3 {[%emt 0:00:06]} Nd4 {[%emt 0:00:19]} 7. Qd2 {[%emt 0:00:27]} Ne7 {[%emt 0:00:07]} 8. Nd1 {[%emt 0:00:33]} d6 {[%emt 0:01:52]} 9. c3 {[%emt 0:00:10]} Ndc6 {[%emt 0:00:07]} 10. Bh6 {[%emt 0:05:57]} Bf6 {[%emt 0:17:45]} 11. Nh3 {[%emt 0:09:59]} Ne5 {[%emt 0:03:14]} 12. O-O {[%emt 0:10:46]} Ng4 {[%emt 0:05:02]} 13. Bg5 {[%emt 0:01:27]} Nc6 {[%emt 0:02:35]} 14. f3 {[%emt 0:02:48]} Bxg5 {[%emt 0:01:11]} 15. Nxg5 {[%emt 0:00:05]} Nf6 {[%emt 0:00:41]} 16. f4 {[%emt 0:00:14]} O-O {[%emt 0:00:33]} 17. Ne3 {[%emt 0:00:04]} d5 {[%emt 0:07:54]} 18. e5 d4 {[%emt 0:00:30]} 19. exf6 dxe3 {[%emt 0:00:30]} 20. Qxe3 Qxf6 {[%emt 0:00:30]} 21. Qxc5 Qe7 {[%emt 0:00:30]} 22. Qe3 Bd7 {[%emt 0:00:30]} 23. Rae1 Rae8 {[%emt 0:00:30]} 24. d4 h6 {[%emt 0:00:30]} 25. Nf3 Kg7 {[%emt 0:00:30]} 26. Qd2 Qd6 {[%emt 0:00:30]} 27. Ne5 Bc8 {[%emt 0:00:30]} 28. Rf2 Rd8 {[%emt 0:00:30]} 29. Nxc6 bxc6 {[%emt 0:00:30]} 30. Re5 Rd7 {[%emt 0:00:30]} 31. Qe2 Rb7 {[%emt 0:00:30]} 32. Rc5 Bd7 {[%emt 0:00:30]} 33. Qe5+ Qxe5 {[%emt 0:00:30]} 34. dxe5 Rfb8 {[%emt 0:00:30]} 35. Rd2 Be8 {[%emt 0:00:30]} 36. b4 Rb5 {[%emt 0:00:30]} 37. Rc4 a5 {[%emt 0:00:30]} 38. a4 R5b6 {[%emt 0:00:30]} 39. bxa5 Ra6 {[%emt 0:00:30]} 40. Rc5 Rba8 {[%emt 0:00:30]} 41. Rd6 Rxa5 {[%emt 0:00:30]} 42. Rxa5 Rxa5 {[%emt 0:00:30]} 43. Rd8 1-0

[Event "2nd Gujarat Open 2019"]
[Site "Ahmedabad, Gujarat"]
[Date "2019.09.22"]
[Round "?"]
[White "Karthikeyan, P.."]
[Black "Choubey Saurabh"]
[Result "1-0"]
[ECO "D03"]
[WhiteElo "2408"]
[BlackElo "1789"]
[Annotator "NA"]
[PlyCount "101"]
[EventDate "2019.09.22"]
[EventCountry "IND"]
[SourceTitle "playchess.com"]
[Source "ChessBase"]
[SourceQuality "1"]
[TimeControl "5400+30"]

1. d4 {[%emt 0:00:00]} d5 {[%emt 0:00:00]} 2. Nf3 {[%emt 0:00:00]} Nf6 {[%emt 0:00:11]} 3. Bg5 {[%emt 0:00:00]} e6 {[%emt 0:03:00]} 4. e3 {[%emt 0:00:00]} c5 {[%emt 0:00:39]} 5. c3 {[%emt 0:00:05]} Nc6 {[%emt 0:00:36]} 6. Nbd2 {[%emt 0:00:35]} Bd6 {[%emt 0:02:12]} 7. Bd3 {[%emt 0:00:29]} h6 {[%emt 0:02:26]} 8. Bh4 {[%emt 0:00:03]} O-O {[%emt 0:00:47]} 9. O-O {[%emt 0:00:32]} e5 {[%emt 0:02:44]} 10. dxe5 {[%emt 0:04:06]} Nxe5 {[%emt 0:00:10]} 11. Nxe5 {[%emt 0:00:04]} Bxe5 {[%emt 0:00:08]} 12. e4 {[%emt 0:00:26]} Qd6 {[%emt 0:12:15]} 13. exd5 {[%emt 0:07:29]} Nxd5 {[%emt 0:14:28]} 14. Nc4 {[%emt 0:05:12]} Bxh2+ {[%emt 0:13:58]} 15. Kh1 {[%emt 0:00:11]} Qc7 {[%emt 0:00:25]} 16. g3 {[%emt 0:02:26]} g5 {[%emt 0:01:29]} 17. Bxg5 hxg5 {[%emt 0:00:30]} 18. Qh5 f5 {[%emt 0:00:30]} 19. Qxg5+ Qg7 {[%emt 0:00:30]} 20. Qxg7+ Kxg7 {[%emt 0:00:30]} 21. Kxh2 f4 {[%emt 0:00:30]} 22. Be4 Nf6 {[%emt 0:00:30]} 23. Bf3 Ng4+ {[%emt 0:00:30]} 24. Kg2 Be6 {[%emt 0:00:30]} 25. Rfe1 Bxc4 {[%emt 0:00:30]} 26. Bxg4 fxg3 {[%emt 0:00:30]} 27. Kxg3 Rad8 {[%emt 0:00:30]} 28. b3 Rd3+ {[%emt 0:00:30]} 29. f3 Bd5 {[%emt 0:00:30]} 30. Rad1 Rxd1 {[%emt 0:00:30]} 31. Rxd1 Bc6 {[%emt 0:00:30]} 32. c4 Rf6 {[%emt 0:00:30]} 33. Rd8 Kf7 {[%emt 0:00:30]} 34. f4 Ke7 {[%emt 0:00:30]} 35. Ra8 a6 {[%emt 0:00:30]} 36. f5 Rd6 {[%emt 0:00:30]} 37. Kf4 Kf6 {[%emt 0:00:30]} 38. Rf8+ Kg7 {[%emt 0:00:30]} 39. Rb8 Kf6 {[%emt 0:00:30]} 40. Bf3 Rd4+ {[%emt 0:00:30]} 41. Ke3 Bxf3 {[%emt 0:00:30]} 42. Kxf3 Rd2 {[%emt 0:00:30]} 43. Rxb7 Rxa2 {[%emt 0:00:30]} 44. Ke4 Re2+ {[%emt 0:00:30]} 45. Kd5 Re5+ {[%emt 0:00:30]} 46. Kd6 Kxf5 {[%emt 0:00:30]} 47. Rc7 Re3 {[%emt 0:00:30]} 48. Rxc5+ Kf6 {[%emt 0:00:30]} 49. Ra5 Rxb3 {[%emt 0:00:30]} 50. c5 Rb5 {[%emt 0:00:30]} 51. c6 1-0

[Event "2nd Gujarat Open 2019"]
[Site "Ahmedabad, Gujarat"]
[Date "2019.09.22"]
[Round "?"]
[White "Hesham, Abdelrahman"]
[Black "Bagwe Gaurang"]
[Result "1-0"]
[ECO "A52"]
[WhiteElo "2396"]
[BlackElo "1788"]
[Annotator "NA"]
[PlyCount "119"]
[EventDate "2019.09.22"]
[EventCountry "IND"]
[SourceTitle "playchess.com"]
[Source "ChessBase"]
[SourceQuality "1"]
[TimeControl "5400+30"]

1. d4 {[%emt 0:02:00]} Nf6 {[%emt 0:00:00]} 2. c4 {[%emt 0:00:09]} e5 {[%emt 0:00:08]} 3. dxe5 {[%emt 0:00:38]} Ng4 {[%emt 0:00:04]} 4. Bf4 {[%emt 0:01:02]} Nc6 {[%emt 0:00:08]} 5. Nf3 {[%emt 0:00:19]} Bb4+ {[%emt 0:00:05]} 6. Nbd2 {[%emt 0:00:19]} Qe7 {[%emt 0:00:07]} 7. e3 {[%emt 0:00:42]} Ngxe5 {[%emt 0:00:08]} 8. Nxe5 {[%emt 0:00:23]} Nxe5 {[%emt 0:00:03]} 9. Be2 {[%emt 0:00:31]} O-O {[%emt 0:01:39]} 10. O-O {[%emt 1:28:57]} Bxd2 {[%emt 0:06:37]} 11. Qxd2 {[%emt 0:00:00]} a5 {[%emt 0:00:05]} 12. c5 {[%emt 0:00:00]} d6 {[%emt 0:09:44]} 13. cxd6 {[%emt 0:00:00]} cxd6 {[%emt 0:01:31]} 14. Rfd1 {[%emt 0:00:00]} Rd8 {[%emt 0:06:25]} 15. Qd4 {[%emt 0:00:00]} Bf5 {[%emt 0:02:02]} 16. Rac1 {[%emt 0:00:00]} Nc6 {[%emt 0:07:46]} 17. Qb6 {[%emt 0:00:00]} Be6 {[%emt 0:08:31]} 18. a3 {[%emt 0:00:00]} a4 {[%emt 0:01:13]} 19. Bb5 {[%emt 0:00:00]} Bb3 {[%emt 0:03:47]} 20. Rxd6 {[%emt 0:00:00]} Rxd6 {[%emt 0:01:00]} 21. Bxd6 {[%emt 0:00:00]} Qxd6 {[%emt 0:00:09]} 22. Qxb7 {[%emt 0:00:00]} Rd8 {[%emt 0:00:14]} 23. Qxc6 {[%emt 0:00:00]} Qe5 {[%emt 0:01:05]} 24. Qc8 {[%emt 0:00:00]} Qd6 25. Bd7 {[%emt 0:00:00]} Rf8 26. Qc6 {[%emt 0:00:00]} Qd2 27. Rb1 {[%emt 0:00:00]} Rd8 28. Bg4 {[%emt 0:00:00]} h5 29. Bf3 {[%emt 0:00:00]} Bd1 30. Qc3 {[%emt 0:00:00]} Qd6 31. e4 {[%emt 0:00:00]} Bxf3 32. Qxf3 {[%emt 0:00:00]} Qd2 33. h3 {[%emt 0:00:00]} Qc2 34. Re1 {[%emt 0:00:00]} Qxb2 35. e5 {[%emt 0:00:00]} Qb3 36. Re3 {[%emt 0:00:00]} Qd1+ 37. Qxd1 {[%emt 0:00:00]} Rxd1+ 38. Kh2 {[%emt 0:00:00]} Ra1 39. Kg3 {[%emt 0:00:00]} g6 40. Kf4 {[%emt 0:00:00]} Ra2 41. Rf3 {[%emt 0:00:00]} Kg7 42. Ke4 {[%emt 0:00:00]} Rd2 43. g4 {[%emt 0:00:00]} hxg4 44. hxg4 {[%emt 0:00:00]} Kf8 45. Rf4 {[%emt 0:00:00]} Ra2 46. e6 {[%emt 0:00:00]} Re2+ 47. Kf3 {[%emt 0:00:00]} Rxe6 48. Rxa4 {[%emt 0:00:00]} Re1 49. Re4 {[%emt 0:00:00]} Ra1 50. Re3 {[%emt 0:00:00]} Ra2 51. Rb3 {[%emt 0:00:00]} Kg7 52. Ke3 {[%emt 0:00:00]} Ra1 53. Kd4 {[%emt 0:00:00]} Ra2 54. f3 {[%emt 0:00:00]} Rc2 55. Rc3 {[%emt 0:00:00]} Rd2+ 56. Kc5 {[%emt 0:00:00]} Rd8 57. a4 {[%emt 0:00:00]} Rc8+ 58. Kb4 {[%emt 0:00:00]} Rb8+ 59. Ka3 {[%emt 0:00:00]} Ra8 60. Rc5 {[%emt 0:00:00]} 1-0

[Event "2nd Gujarat Open 2019"]
[Site "Ahmedabad, Gujarat"]
[Date "2019.09.22"]
[Round "?"]
[White "Konguvel, Ponnuswamy"]
[Black "Sawant, Akshay"]
[Result "1/2-1/2"]
[ECO "A04"]
[WhiteElo "2374"]
[BlackElo "1761"]
[Annotator "NA"]
[PlyCount "78"]
[EventDate "2019.09.22"]
[EventCountry "IND"]
[SourceTitle "playchess.com"]
[Source "ChessBase"]
[SourceQuality "1"]
[TimeControl "5400+30"]

1. e4 {[%emt 0:00:00]} c5 {[%emt 0:00:00]} 2. Nf3 {[%emt 0:00:30]} e6 {[%emt 0:00:30]} 3. d3 {[%emt 0:00:30]} Nc6 {[%emt 0:00:30]} 4. g3 {[%emt 0:00:30]} g6 {[%emt 0:00:30]} 5. Bg2 {[%emt 0:00:30]} Bg7 {[%emt 0:00:30]} 6. O-O {[%emt 0:00:30]} Nge7 {[%emt 0:00:30]} 7. c3 {[%emt 0:00:30]} d6 {[%emt 0:00:30]} 8. d4 {[%emt 0:00:30]} O-O {[%emt 0:00:30]} 9. Be3 {[%emt 0:00:30]} b6 {[%emt 0:00:30]} 10. Qd2 {[%emt 0:00:30]} e5 {[%emt 0:00:30]} 11. d5 {[%emt 0:00:30]} Nb8 {[%emt 0:00:30]} 12. a4 {[%emt 0:00:30]} Nd7 {[%emt 0:00:30]} 13. Na3 {[%emt 0:00:30]} f5 {[%emt 0:00:30]} 14. exf5 {[%emt 0:00:30]} Nxf5 {[%emt 0:00:30]} 15. Bg5 {[%emt 0:00:30]} Nf6 {[%emt 0:00:30]} 16. g4 {[%emt 0:00:30]} Ne7 {[%emt 0:00:30]} 17. h3 {[%emt 0:00:30]} Rb8 {[%emt 0:00:30]} 18. Nh2 {[%emt 0:00:30]} h5 {[%emt 0:00:30]} 19. Qd1 {[%emt 0:00:30]} hxg4 {[%emt 0:00:30]} 20. hxg4 {[%emt 0:00:30]} Qd7 {[%emt 0:00:30]} 21. Nc4 {[%emt 0:00:30]} Ba6 {[%emt 0:00:30]} 22. b3 {[%emt 0:00:30]} Nh7 {[%emt 0:00:30]} 23. Be3 {[%emt 0:00:30]} g5 {[%emt 0:00:30]} 24. Qd2 {[%emt 0:00:30]} Bh6 {[%emt 0:00:30]} 25. Rfe1 {[%emt 0:00:30]} Ng6 {[%emt 0:00:30]} 26. Qc2 {[%emt 0:00:30]} Nh4 {[%emt 0:00:30]} 27. Be4 {[%emt 0:00:30]} Bxc4 {[%emt 0:00:30]} 28. bxc4 {[%emt 0:00:30]} Nf6 {[%emt 0:00:30]} 29. f3 {[%emt 0:00:30]} Nxe4 {[%emt 0:00:30]} 30. Qxe4 {[%emt 0:00:30]} Rf6 {[%emt 0:00:30]} 31. Rf1 {[%emt 0:00:30]} Rbf8 {[%emt 0:00:30]} 32. a5 {[%emt 0:00:30]} Qf7 {[%emt 0:00:30]} 33. axb6 {[%emt 0:00:30]} axb6 {[%emt 0:00:30]} 34. Ra2 {[%emt 0:00:30]} Qh7 {[%emt 0:00:30]} 35. Qxh7+ {[%emt 0:00:30]} Kxh7 {[%emt 0:00:30]} 36. Ra7+ {[%emt 0:00:30]} Kg6 {[%emt 0:00:30]} 37. Rd7 {[%emt 0:00:30]} R8f7 {[%emt 0:00:30]} 38. Rd8 {[%emt 0:00:30]} Rf8 {[%emt 0:00:30]} 39. Rd7 {[%emt 0:00:30]} R8f7 {[%emt 0:00:30]} 1/2-1/2

[Event "2nd Gujarat Open 2019"]
[Site "Ahmedabad, Gujarat"]
[Date "2019.09.22"]
[Round "?"]
[White "Nitin, S.."]
[Black "Amatya, Pramit"]
[Result "1-0"]
[ECO "B53"]
[WhiteElo "2361"]
[BlackElo "1751"]
[Annotator "NA"]
[PlyCount "62"]
[EventDate "2019.09.22"]
[EventCountry "IND"]
[SourceTitle "playchess.com"]
[Source "ChessBase"]
[SourceQuality "1"]
[TimeControl "5400+30"]

1. e4 {[%emt 0:00:05]} c5 {[%emt 0:00:00]} 2. Nf3 {[%emt 0:00:07]} d6 {[%emt 0:00:01]} 3. d4 {[%emt 0:00:08]} cxd4 {[%emt 0:00:10]} 4. Qxd4 {[%emt 0:00:07]} Nc6 {[%emt 0:01:24]} 5. Qe3 {[%emt 0:00:10]} Nf6 {[%emt 0:01:22]} 6. Be2 {[%emt 0:00:55]} e6 {[%emt 0:03:56]} 7. O-O {[%emt 0:01:18]} Be7 {[%emt 0:02:15]} 8. Rd1 {[%emt 0:00:29]} Qc7 {[%emt 0:03:23]} 9. c4 {[%emt 0:02:11]} O-O {[%emt 0:03:45]} 10. Nc3 {[%emt 0:01:12]} Bd7 {[%emt 0:08:56]} 11. b3 {[%emt 0:01:20]} Ne5 {[%emt 0:06:13]} 12. Nd4 {[%emt 0:06:27]} a6 {[%emt 0:10:27]} 13. Bb2 {[%emt 0:00:58]} Bc6 {[%emt 0:01:44]} 14. Rac1 {[%emt 0:00:56]} Qb8 {[%emt 0:04:15]} 15. h3 {[%emt 0:01:53]} Rd8 16. a4 {[%emt 0:00:30]} Ng6 17. Ba3 {[%emt 0:00:30]} Bf8 18. Bf1 {[%emt 0:00:30]} Kh8 19. Bb2 {[%emt 0:00:30]} d5 20. exd5 {[%emt 0:00:30]} exd5 21. Nf5 {[%emt 0:00:30]} Qf4 22. Qxf4 {[%emt 0:00:30]} Nxf4 23. Nh6 {[%emt 0:00:30]} gxh6 24. Nxd5 {[%emt 0:00:30]} N4xd5 25. cxd5 {[%emt 0:00:30]} Rxd5 26. Bxf6+ {[%emt 0:00:30]} Bg7 27. Bxg7+ {[%emt 0:00:30]} Kxg7 28. Rxd5 {[%emt 0:00:30]} Bxd5 29. b4 {[%emt 0:00:30]} a5 30. Rc5 {[%emt 0:00:30]} Bb3 31. bxa5 {[%emt 0:00:30]} Bxa4 1-0

[Event "2nd Gujarat Open 2019"]
[Site "Ahmedabad, Gujarat"]
[Date "2019.09.22"]
[Round "?"]
[White "Manush Shah"]
[Black "Tamhankar, Siddhant"]
[Result "1-0"]
[ECO "A56"]
[WhiteElo "2352"]
[BlackElo "1750"]
[Annotator "NA"]
[PlyCount "55"]
[EventDate "2019.09.22"]
[EventCountry "IND"]
[SourceTitle "playchess.com"]
[Source "ChessBase"]
[SourceQuality "1"]
[TimeControl "5400+30"]

1. d4 {[%emt 0:00:30]} Nf6 {[%emt 0:00:19]} 2. Nf3 {[%emt 0:00:06]} c5 {[%emt 0:02:03]} 3. d5 {[%emt 0:00:08]} d6 {[%emt 0:00:14]} 4. c4 {[%emt 0:00:33]} e5 {[%emt 0:01:50]} 5. Nc3 {[%emt 0:03:18]} Be7 {[%emt 0:00:10]} 6. g3 {[%emt 0:02:13]} Nbd7 {[%emt 0:04:57]} 7. Bg2 {[%emt 0:00:19]} Nf8 {[%emt 0:00:40]} 8. O-O {[%emt 0:01:12]} Ng6 {[%emt 0:00:13]} 9. Ne1 {[%emt 0:03:48]} O-O {[%emt 0:01:44]} 10. Nd3 {[%emt 0:01:58]} h5 {[%emt 0:10:43]} 11. e4 {[%emt 0:15:58]} h4 {[%emt 0:06:12]} 12. Rb1 Bg4 {[%emt 0:00:30]} 13. Bf3 Bh3 {[%emt 0:00:30]} 14. Re1 Qc8 {[%emt 0:00:30]} 15. Bg2 hxg3 {[%emt 0:00:30]} 16. hxg3 Nh7 {[%emt 0:00:30]} 17. Be3 Bg5 {[%emt 0:00:30]} 18. Bxg5 Nxg5 {[%emt 0:00:30]} 19. Qh5 Qg4 {[%emt 0:00:30]} 20. Qxg4 Bxg4 {[%emt 0:00:30]} 21. f4 exf4 {[%emt 0:00:30]} 22. gxf4 Nh3+ {[%emt 0:00:30]} 23. Bxh3 Bxh3 {[%emt 0:00:30]} 24. f5 Ne5 {[%emt 0:00:30]} 25. Nxe5 dxe5 {[%emt 0:00:30]} 26. Kf2 g5 {[%emt 0:00:30]} 27. Rh1 g4 {[%emt 0:00:30]} 28. Rbg1 1-0